bitfinex/quotes_SOLUSD_20240605
["timestamp","ask_amount","ask_price","bid_price","bid_amount"]
[1717566586564,0.4,173.24,173.23,1067.81551619]
[1717566586757,0.4,173.24,173.23,1027.32580717]
[1717566587471,0.4,173.24,173.23,1066.34900902]
[1717566587668,0.4,173.24,173.23,1067.8156657]
[1717566587856,0.4,173.24,173.23,1027.32595668]
[1717566588046,0.4,173.24,173.23,1066.34900902]
[1717566589055,0.4,173.24,173.23,1067.81578296]
[1717566589559,0.4,173.24,173.23,1027.32607394]
[1717566590272,0.4,173.24,173.23,1067.81578296]
[1717566590479,0.4,173.24,173.23,1027.32607394]
[1717566590773,0.4,173.24,173.23,1067.81583164]
[1717566591279,0.4,173.24,173.23,1027.32612262]
[1717566591454,0.4,173.24,173.23,1067.81583164]
[1717566591653,0.4,173.24,173.23,1027.32612262]
[1717566591874,0.4,173.24,173.23,1047.32612262]
[1717566592082,0.4,173.24,173.23,1087.81583164]
[1717566592248,0.4,173.24,173.23,1047.32612262]
[1717566592448,0.4,173.24,173.23,1095.05583164]
[1717566592968,0.4,173.24,173.23,1054.56612262]
[1717566593179,0.4,173.24,173.23,1095.05583164]
[1717566593354,0.4,173.24,173.23,1054.56612262]
[1717566593551,0.4,173.24,173.23,1095.05583164]
[1717566593963,0.4,173.24,173.23,1047.32612262]
[1717566594347,0.4,173.24,173.23,1087.81583164]
[1717566595359,0.4,173.24,173.23,1047.32612262]
[1717566595783,0.4,173.24,173.23,1081.51913164]
[1717566595982,0.4,173.24,173.23,1041.02942262]
[1717566596653,0.4,173.24,173.23,1081.51913164]
[1717566597478,0.4,173.24,173.23,1041.02942262]
[1717566598148,0.4,173.24,173.23,1081.51913164]
[1717566598786,0.4,173.24,173.23,1041.02942262]
[1717566599377,0.4,173.24,173.23,1093.25234741]
[1717566599554,0.4,173.24,173.23,1041.02942262]
[1717566599948,0.4,173.24,173.23,1093.25234741]
[1717566600653,0.4,173.24,173.23,1041.02942262]
[1717566601453,0.4,173.24,173.23,1093.25234741]
[1717566601780,0.4,173.24,173.23,1041.02942262]
[1717566601995,0.4,173.34,173.32,2.1347]
[1717566602185,22.2912,173.33,173.32,2.1347]
[1717566604972,7.64,173.34,173.3,2.1349]
[1717566605178,29.4896,173.32,173.29,2.135]
[1717566605488,15.877,173.31,173.29,2.135]
[1717566605682,6.3726,173.3,173.29,2.135]
[1717566608170,6.3958,173.28,173.25,12.90010783]
[1717566608687,6.3958,173.27,173.26,2.1354]
[1717566610755,6.6265,173.29,173.28,2.1352]
[1717566616695,22.5499,173.32,173.29,983.9975]
[1717566618064,7.24,173.31,173.29,983.9975]
[1717566619682,2.1347,173.33,173.29,983.9975]
[1717566619984,7.24,173.32,173.29,983.9975]
[1717566620188,13.4043,173.33,173.29,986.1325]
[1717566620698,20.0,173.32,173.29,986.1325]
[1717566620873,20.0,173.32,173.29,983.9975]
[1717566623370,0.4,173.34,173.3,2.1349]
[1717566623674,0.4,173.34,173.31,2.1348]
[1717566624068,0.4,173.34,173.3,2.1349]
[1717566626482,0.4,173.34,173.31,2.1348]
[1717566626684,0.4,173.34,173.32,2.1347]
[1717566626899,0.4,173.34,173.31,2.1348]
[1717566630388,0.4,173.34,173.32,2.1347]
[1717566630910,0.4,173.34,173.3,11.51]
[1717566631072,0.4,173.34,173.3,17.9149]
[1717566631410,0.4,173.34,173.33,2.1346]
[1717566632407,0.4,173.34,173.32,2.1347]
[1717566636111,0.4,173.34,173.32,2.1347]
[1717566639724,0.4,173.34,173.33,2.1346]
[1717566642108,0.1452269,173.36,173.35,983.5975]
[1717566648529,0.1452269,173.36,173.35,985.7319]
[1717566649322,0.1452269,173.36,173.35,983.5975]
[1717566649528,0.1452269,173.36,173.35,985.7319]
[1717566654331,0.1452269,173.36,173.35,990.0007]
[1717566654715,0.1452269,173.36,173.35,990.1707]
[1717566654918,0.1452269,173.36,173.35,990.3407]
[1717566655219,0.1452269,173.36,173.35,996.7439]
[1717566658033,0.1452269,173.36,173.35,985.7319]
[1717566659203,7.24,173.37,173.35,985.7319]
[1717566659204,5.8852269,173.37,173.35,985.7319]
[1717566659521,7.24,173.38,173.35,985.7319]
[1717566659725,7.24,173.38,173.36,2.1342]
[1717566659914,2.1337,173.41,173.35,983.5975]
[1717566659915,7.24,173.4,173.37,2.1341]
[1717566660805,7.24,173.41,173.38,2.134]
[1717566661021,7.24,173.41,173.37,2.134]
[1717566661832,7.24,173.41,173.38,2.134]
[1717566662135,22.1334,173.43,173.37,2.134]
[1717566662439,20.4,173.44,173.35,990.8375]
[1717566662605,0.4,173.44,173.43,2.1334]
[1717566663644,0.4,173.44,173.42,2.1334]
[1717566665038,0.4,173.44,173.43,2.1334]
[1717566668258,0.4,173.44,173.43,28.5741]
[1717566668550,0.4,173.44,173.43,24.47965968]
[1717566669744,0.4,173.44,173.43,13.6402]
[1717566670034,0.4,173.44,173.43,13.8102]
[1717566670721,0.4,173.44,173.43,6.5702]
[1717566671831,0.4,173.44,173.43,13.8102]
[1717566672235,0.4,173.44,173.43,13.9802]
[1717566673848,0.4,173.44,173.43,28.9141]
[1717566675561,0.4,173.44,173.43,148.9141]
[1717566676362,0.4,173.44,173.43,155.1653]
[1717566677852,0.4,173.44,173.43,175.1653]
[1717566678147,0.4,173.44,173.43,55.1653]
[1717566678726,0.4,173.44,173.43,126.97586922]
[1717566678953,0.4,173.44,173.43,55.1653]
[1717566679157,0.4,173.44,173.43,47.7553]
[1717566679452,0.4,173.44,173.43,54.9953]
[1717566679865,0.4,173.44,173.43,126.80586922]
[1717566680063,0.4,173.44,173.43,54.9953]
[1717566680584,0.4,173.44,173.43,55.1653]
[1717566680851,0.4,173.44,173.43,126.97586922]
[1717566681022,0.4,173.44,173.43,55.1653]
[1717566681224,0.4,173.44,173.43,126.97586922]
[1717566681744,0.4,173.44,173.43,134.21586922]
[1717566681949,0.8111912,173.46,173.43,134.21586922]
[1717566681950,0.8111912,173.46,173.45,21.3316]
[1717566682156,9.12e-05,173.46,173.45,54.9881]
[1717566682323,9.12e-05,173.46,173.45,126.79866922]
[1717566682532,9.12e-05,173.46,173.45,54.9881]
[1717566682763,9.12e-05,173.46,173.45,126.79866922]
[1717566683049,9.12e-05,173.46,173.45,54.9881]
[1717566683252,9.12e-05,173.46,173.45,142.32116922]
[1717566683952,9.12e-05,173.46,173.45,70.5106]
[1717566684145,9.12e-05,173.46,173.45,142.32116922]
[1717566684344,9.12e-05,173.46,173.45,70.5106]
[1717566684543,9.12e-05,173.46,173.45,87.8306]
[1717566684730,9.12e-05,173.46,173.45,159.64116922]
[1717566685331,0.4,173.54,173.53,2.1321]
[1717566685530,0.4,173.54,173.53,128.66779685]
[1717566685731,0.4,173.54,173.53,21.4916]
[1717566685956,0.4,173.54,173.53,135.06429685]
[1717566686325,0.4,173.54,173.53,21.4916]
[1717566686960,0.4,173.54,173.53,135.06429685]
[1717566687155,0.4,173.54,173.53,21.4916]
[1717566687364,0.4,173.54,173.53,135.23429685]
[1717566687547,0.4,173.54,173.53,21.6616]
[1717566687746,0.4,173.54,173.53,135.23429685]
[1717566687979,0.4,173.54,173.53,21.6616]
[1717566688151,0.4,173.54,173.53,142.47429685]
[1717566688355,0.4,173.54,173.53,28.9016]
[1717566688554,0.4,173.54,173.53,135.23429685]
[1717566688765,0.4,173.54,173.53,142.47429685]
[1717566688975,0.4,173.54,173.53,21.6616]
[1717566689181,0.4,173.54,173.53,142.47429685]
[1717566689568,0.4,173.54,173.53,28.9016]
[1717566689754,0.4,173.54,173.53,142.47429685]
[1717566689955,0.4,173.54,173.53,21.6616]
[1717566690266,0.4,173.54,173.53,142.47429685]
[1717566690460,0.4,173.54,173.53,148.52169685]
[1717566691258,0.4,173.54,173.53,184.37019685]
[1717566692557,0.4,173.54,173.53,70.7975]
[1717566693578,0.4,173.54,173.53,184.37019685]
[1717566694152,0.4,173.54,173.53,70.7975]
[1717566694353,0.4,173.54,173.53,184.37019685]
[1717566695278,0.03596824,173.6,173.59,27.9177]
[1717566695484,0.03596824,173.6,173.59,169.07039685]
[1717566695787,0.03596824,173.6,173.59,55.4977]
[1717566696787,0.03596824,173.6,173.59,169.07039685]
[1717566697259,0.03596824,173.6,173.59,55.4977]
[1717566697460,0.03596824,173.6,173.59,110.37216902]
[1717566697954,0.03596824,173.6,173.59,55.4977]
[1717566698155,0.03596824,173.6,173.59,110.37216902]
[1717566698951,0.03596824,173.6,173.59,55.4977]
[1717566699155,0.03596824,173.6,173.59,110.37216902]
[1717566699856,0.03596824,173.6,173.59,55.4977]
[1717566700078,0.03596824,173.6,173.59,96.52886902]
[1717566700290,0.03596824,173.6,173.59,103.59886902]
[1717566700491,0.03596824,173.6,173.59,48.5544]
[1717566700973,0.03596824,173.6,173.59,103.42886902]
[1717566701177,0.03596824,173.6,173.59,48.5544]
[1717566701554,0.03596824,173.6,173.59,103.42886902]
[1717566701757,0.03596824,173.6,173.59,48.5544]
[1717566701977,0.03596824,173.6,173.59,103.42886902]
[1717566702558,0.03596824,173.6,173.59,48.5544]
[1717566702758,0.03596824,173.6,173.59,103.42886902]
[1717566703175,0.03596824,173.6,173.59,103.76886902]
[1717566703561,0.03596824,173.6,173.59,48.8944]
[1717566704100,0.03596824,173.6,173.59,41.3144]
[1717566704259,0.03596824,173.6,173.59,2.1314]
[1717566704565,7.27596824,173.6,173.59,2.1314]
[1717566704770,0.03596824,173.6,173.59,2.1314]
[1717566704984,7.27596824,173.6,173.59,2.1314]
[1717566705159,0.03596824,173.6,173.59,2.1314]
[1717566705668,0.03596824,173.6,173.59,6.3943]
[1717566707255,0.03596824,173.6,173.59,2.1314]
[1717566707687,7.27596824,173.6,173.59,2.1314]
[1717566708005,13.45146824,173.6,173.59,2.1314]
[1717566708354,13.45146824,173.6,173.58,2.1315]
[1717566708594,6.21146824,173.6,173.59,2.1314]
[1717566708888,6.21146824,173.6,173.56,4.2635]
[1717566708889,7.27596824,173.6,173.56,2.1317]
[1717566709070,7.24,173.57,173.56,2.1317]
[1717566709272,6.1755,173.56,173.55,2.1319]
[1717566709488,27.7042518,173.71,173.55,2.1319]
[1717566709700,29.8341518,173.71,173.7,663.91714056]
[1717566709879,96.8539518,173.71,173.7,657.66064056]
[1717566710194,88.2238518,173.71,173.7,647.35200575]
[1717566710392,92.76025052,173.71,173.7,645.62337094]
[1717566710567,82.76025052,173.71,173.7,645.62337094]
[1717566710759,82.76025052,173.71,173.7,643.90443023]
[1717566711488,82.76025052,173.71,173.7,642.17579623]
[1717566712167,7.6242518,173.71,173.7,642.17579623]
[1717566712992,0.3842518,173.71,173.7,642.17579623]
[1717566713562,7.6242518,173.71,173.7,642.17579623]
[1717566713963,0.3842518,173.71,173.7,642.17579623]
[1717566714182,7.6242518,173.71,173.7,644.30589623]
[1717566714765,0.3842518,173.71,173.7,644.30589623]
[1717566714961,7.6242518,173.71,173.7,644.30589623]
[1717566717272,0.3842518,173.71,173.7,644.30589623]
[1717566719895,0.3842518,173.71,173.7,642.17579623]
[1717566720087,7.6242518,173.71,173.7,642.17579623]
[1717566720470,9.7541518,173.71,173.7,642.17579623]
[1717566720870,7.6242518,173.71,173.7,642.17579623]
[1717566723993,0.3842518,173.71,173.7,642.17579623]
[1717566724368,0.3842518,173.71,173.7,644.30589623]
[1717566725471,0.3842518,173.71,173.7,654.95639623]
[1717566725883,0.3842518,173.71,173.7,663.43329623]
[1717566726090,0.3842518,173.71,173.7,677.06359623]
[1717566726397,0.3842518,173.71,173.7,669.82359623]
[1717566728375,0.3842518,173.71,173.7,677.06359623]
[1717566729679,0.3842518,173.71,173.7,663.47679623]
[1717566729877,0.3842518,173.71,173.7,693.86749623]
[1717566730086,0.3842518,173.71,173.7,694.03749623]
[1717566731388,0.3842518,173.71,173.7,714.20749623]
[1717566731794,0.3842518,173.71,173.7,834.20749623]
[1717566732178,0.3842518,173.71,173.7,714.20749623]
[1717566734109,0.3842518,173.71,173.7,706.96749623]
[1717566734308,0.3842518,173.71,173.7,714.20749623]
[1717566735581,0.3842518,173.71,173.7,834.20749623]
[1717566736277,0.3842518,173.71,173.7,690.71679623]
[1717566736479,0.3842518,173.71,173.7,663.47679623]
[1717566738199,0.3842518,173.71,173.7,654.95639623]
[1717566738400,0.3842518,173.71,173.7,642.17579623]
[1717566738899,7.6242518,173.71,173.7,642.17579623]
[1717566739483,9.7541518,173.71,173.7,642.17579623]
[1717566739680,29.7541518,173.71,173.7,642.17579623]
[1717566740208,27.6242518,173.71,173.7,642.17579623]
[1717566740704,7.6242518,173.71,173.7,642.17579623]
[1717566742188,0.3842518,173.71,173.7,642.17579623]
[1717566742403,7.6242518,173.71,173.7,642.17579623]
[1717566743680,0.3842518,173.71,173.7,644.30589623]
[1717566744188,0.3842518,173.71,173.7,663.47679623]
[1717566746509,0.3842518,173.71,173.7,642.17579623]
[1717566747821,0.3842518,173.71,173.7,644.30589623]
[1717566749103,0.3842518,173.71,173.7,642.17579623]
[1717566750720,0.3842518,173.71,173.7,644.30589623]
[1717566752827,0.3842518,173.71,173.7,669.71889623]
[1717566755334,0.3842518,173.71,173.7,669.88889623]
[1717566755642,0.3842518,173.71,173.7,669.71889623]
[1717566757730,0.3842518,173.71,173.7,663.47679623]
[1717566761733,0.3842518,173.71,173.7,669.97649623]
[1717566764435,0.3842518,173.71,173.7,805.82589623]
[1717566765431,0.3842518,173.71,173.7,685.82589623]
[1717566765807,0.3842518,173.71,173.7,677.13649623]
[1717566766233,0.3842518,173.71,173.7,692.98589623]
[1717566767342,0.3842518,173.71,173.7,812.98589623]
[1717566769524,0.3842518,173.71,173.7,692.98589623]
[1717566770438,0.3842518,173.71,173.7,685.82589623]
[1717566770619,0.3842518,173.71,173.7,692.98589623]
[1717566771734,0.3842518,173.71,173.7,677.13649623]
[1717566772127,0.3842518,173.71,173.7,797.13649623]
[1717566772320,0.3842518,173.71,173.7,813.58519623]
[1717566773168,0.3842518,173.71,173.7,848.31519623]
[1717566773319,5.18e-05,173.71,173.7,868.31519623]
[1717566773525,5.18e-05,173.71,173.7,748.31519623]
[1717566774141,5.18e-05,173.71,173.7,741.15519623]
[1717566774332,5.18e-05,173.71,173.7,748.31519623]
[1717566774846,5.18e-05,173.71,173.7,741.15519623]
[1717566775143,5.18e-05,173.71,173.7,748.31519623]
[1717566775458,5.18e-05,173.71,173.7,741.15519623]
[1717566775625,5.18e-05,173.71,173.7,748.31519623]
[1717566778731,5.18e-05,173.71,173.7,755.47519623]
[1717566781852,5.18e-05,173.71,173.7,741.15519623]
[1717566782149,5.18e-05,173.71,173.7,756.95519623]
[1717566782339,5.18e-05,173.71,173.7,776.95519623]
[1717566785247,5.18e-05,173.71,173.7,860.81519623]
[1717566785652,5.18e-05,173.71,173.7,867.97519623]
[1717566786650,5.18e-05,173.71,173.7,868.14519623]
[1717566786833,5.18e-05,173.71,173.7,868.31519623]
[1717566789647,5.18e-05,173.71,173.7,875.47519623]
[1717566789850,5.18e-05,173.71,173.7,896.95519623]
[1717566790029,5.18e-05,173.71,173.7,898.4016146]
[1717566790231,5.18e-05,173.71,173.7,862.6016146]
[1717566790653,5.18e-05,173.71,173.7,898.4016146]
[1717566791538,5.18e-05,173.71,173.7,896.95519623]
[1717566793349,5.18e-05,173.71,173.7,664.92334]
[1717566793537,5.18e-05,173.71,173.7,670.63679623]
[1717566793934,5.18e-05,173.71,173.7,790.63679623]
[1717566795155,5.18e-05,173.71,173.7,790.80679623]
[1717566795862,5.18e-05,173.71,173.7,783.64679623]
[1717566796042,5.18e-05,173.71,173.7,790.97679623]
[1717566798665,5.18e-05,173.71,173.7,663.81679623]
[1717566798962,5.18e-05,173.71,173.7,670.97679623]
[1717566799364,5.18e-05,173.71,173.7,790.97679623]
[1717566802071,5.18e-05,173.71,173.7,663.47679623]
[1717566802448,5.18e-05,173.71,173.7,670.63679623]
[1717566803265,5.18e-05,173.71,173.7,670.80679623]
[1717566803564,5.18e-05,173.71,173.7,663.47679623]
[1717566803873,5.18e-05,173.71,173.7,670.63679623]
[1717566804738,5.18e-05,173.71,173.7,670.80679623]
[1717566804943,5.18e-05,173.71,173.7,691.92310861]
[1717566805237,5.18e-05,173.71,173.7,670.97679623]
[1717566805437,5.18e-05,173.71,173.7,691.92310861]
[1717566805682,5.18e-05,173.71,173.7,670.97679623]
[1717566808060,5.18e-05,173.71,173.7,691.92310861]
[1717566808370,5.18e-05,173.71,173.7,711.92310861]
[1717566808572,5.18e-05,173.71,173.7,692.42255644]
[1717566808780,5.18e-05,173.71,173.7,713.36886882]
[1717566809559,5.18e-05,173.71,173.7,692.42255644]
[1717566809760,5.18e-05,173.71,173.7,685.26255644]
[1717566809960,5.18e-05,173.71,173.7,692.42255644]
[1717566810166,5.18e-05,173.71,173.7,812.42255644]
[1717566811164,5.18e-05,173.71,173.7,805.26255644]
[1717566811363,5.18e-05,173.71,173.7,690.97679623]
[1717566812592,5.18e-05,173.71,173.7,670.97679623]
[1717566812798,5.18e-05,173.71,173.7,690.97679623]
[1717566813764,5.18e-05,173.71,173.7,683.81679623]
[1717566813974,5.18e-05,173.71,173.7,690.97679623]
[1717566814782,5.18e-05,173.71,173.7,692.42302541]
[1717566816983,5.18e-05,173.71,173.7,812.42302541]
[1717566818979,5.18e-05,173.71,173.7,818.85892541]
[1717566821302,5.18e-05,173.71,173.7,811.69892541]
[1717566821484,5.18e-05,173.71,173.7,818.85892541]
[1717566823204,5.18e-05,173.71,173.7,805.26302541]
[1717566823393,5.18e-05,173.71,173.7,812.42302541]
[1717566824274,5.18e-05,173.71,173.7,869.92372541]
[1717566824479,5.18e-05,173.71,173.7,898.56372541]
[1717566829175,5.18e-05,173.71,173.7,915.88372541]
[1717566830112,5.18e-05,173.71,173.7,795.88372541]
[1717566831502,5.18e-05,173.71,173.7,778.56372541]
[1717566831693,5.18e-05,173.71,173.7,778.22372541]
[1717566832707,5.18e-05,173.71,173.7,742.42372541]
[1717566832898,5.18e-05,173.71,173.7,778.22372541]
[1717566833223,5.18e-05,173.71,173.7,778.39372541]
[1717566833806,5.18e-05,173.71,173.7,778.56372541]
[1717566835683,5.18e-05,173.71,173.7,852.0543793]
[1717566835884,5.18e-05,173.71,173.7,778.56372541]
[1717566836094,5.18e-05,173.71,173.7,852.0543793]
[1717566836295,5.18e-05,173.71,173.7,778.56372541]
[1717566836508,5.18e-05,173.71,173.7,852.0543793]
[1717566836707,5.18e-05,173.71,173.7,778.56372541]
[1717566837005,5.18e-05,173.71,173.7,762.01132541]
[1717566837199,5.18e-05,173.71,173.7,1079.86302541]
[1717566837401,5.18e-05,173.71,173.7,1087.02302541]
[1717566837587,5.18e-05,173.71,173.7,1160.5136793]
[1717566837788,5.18e-05,173.71,173.7,1087.02302541]
[1717566838399,5.18e-05,173.71,173.7,1160.5136793]
[1717566838793,5.18e-05,173.71,173.7,1087.36302541]
[1717566839181,5.18e-05,173.71,173.7,1180.8536793]
[1717566839596,5.18e-05,173.71,173.7,1107.36302541]
[1717566839794,5.18e-05,173.71,173.7,1180.8536793]
[1717566840189,5.18e-05,173.71,173.7,1107.36302541]
[1717566840507,5.18e-05,173.71,173.7,1139.0536793]
[1717566840741,5.18e-05,173.71,173.7,1146.2136793]
[1717566841018,5.18e-05,173.71,173.7,1045.22302541]
[1717566841523,5.18e-05,173.71,173.7,1052.38302541]
[1717566842188,5.18e-05,173.71,173.7,1145.8736793]
[1717566842424,5.18e-05,173.71,173.7,1072.38302541]
[1717566842919,5.18e-05,173.71,173.7,1072.55302541]
[1717566843213,5.18e-05,173.71,173.7,692.42302541]
[1717566843384,5.18e-05,173.71,173.7,676.74262541]
[1717566843697,5.18e-05,173.71,173.7,692.42302541]
[1717566845989,5.18e-05,173.71,173.7,685.26302541]
[1717566846306,5.18e-05,173.71,173.7,692.42302541]
[1717566848197,5.18e-05,173.71,173.7,690.97679623]
[1717566848608,5.18e-05,173.71,173.7,683.81679623]
[1717566848921,5.18e-05,173.71,173.7,690.97679623]
[1717566849422,5.18e-05,173.71,173.7,683.81679623]
[1717566850126,5.18e-05,173.71,173.7,690.97679623]
[1717566850336,5.18e-05,173.71,173.7,644.30589623]
[1717566857123,5.18e-05,173.71,173.7,642.17579623]
[1717566857321,5.18e-05,173.71,173.7,644.30589623]
[1717566858024,5.18e-05,173.71,173.7,642.17579623]
[1717566858621,7.1600518,173.71,173.7,642.17579623]
[1717566864013,9.2899518,173.71,173.7,642.17579623]
[1717566864342,29.2899518,173.71,173.7,642.17579623]
[1717566865254,9.2899518,173.71,173.7,642.17579623]
[1717566865402,29.2899518,173.71,173.7,642.17579623]
[1717566865602,27.1600518,173.71,173.7,642.17579623]
[1717566866707,29.2899518,173.71,173.7,642.17579623]
[1717566867633,7.1600518,173.71,173.7,642.17579623]
[1717566869442,5.18e-05,173.71,173.7,642.17579623]
[1717566869610,7.1600518,173.71,173.7,642.17579623]
[1717566875316,20.7098518,173.71,173.7,642.17579623]
[1717566875516,20.8798518,173.71,173.7,642.17579623]
[1717566875815,36.7899518,173.71,173.7,642.17579623]
[1717566876418,77.4396518,173.71,173.7,418.54297921]
[1717566876644,103.34823977,173.71,173.7,374.01162679]
[1717566876844,109.52648754,173.71,173.7,287.2503808]
[1717566877017,115.5099733,173.71,173.7,282.4593808]
[1717566877218,115.5099733,173.71,173.7,277.8007758]
[1717566877419,145.5099733,173.71,173.7,273.9449758]
[1717566877723,145.5099733,173.71,173.7,253.2081758]
[1717566877909,145.5099733,173.71,173.7,208.1402278]
[1717566878117,145.5099733,173.71,173.7,192.2402278]
[1717566878352,272.28865072,173.71,173.7,152.20513863]
[1717566878528,272.28865072,173.71,173.7,144.33770559]
[1717566879021,272.28865072,173.71,173.7,141.38057259]
[1717566879223,2.1319,173.55,173.51,0.4]
[1717566879537,7.16,173.54,173.51,0.4]
[1717566879734,7.16,173.53,173.51,0.4]
[1717566880954,9.2918,173.56,173.51,0.4]
[1717566881152,20.0,173.55,173.51,0.4]
[1717566881652,27.16,173.55,173.51,0.4]
[1717566881833,7.16,173.55,173.51,0.4]
[1717566882055,20.0,173.54,173.51,0.4]
[1717566882670,34.52,173.72,173.51,0.4]
[1717566882671,10.0,173.64,173.51,0.4]
[1717566882886,2.1317,173.57,173.51,7.56]
[1717566883035,2.1318,173.56,173.51,7.56]
[1717566883256,22.1318,173.56,173.51,0.4]
[1717566883561,29.2918,173.56,173.51,0.4]
[1717566884043,2.1319,173.55,173.51,0.4]
[1717566884246,9.2919,173.55,173.51,0.4]
[1717566885860,22.1318,173.56,173.51,0.4]
[1717566886170,9.2918,173.56,173.51,0.4]
[1717566886349,20.0,173.55,173.51,0.4]
[1717566887677,20.0,173.55,173.51,6.5616]
[1717566887837,22.1318,173.56,173.51,6.5616]
[1717566888172,20.0,173.56,173.51,8.694]
[1717566888459,7.16,173.57,173.53,6.334]
[1717566888636,14.9186,173.61,173.53,6.334]
[1717566888834,7.16,173.58,173.53,8.4661]
[1717566889234,7.16,173.58,173.53,6.334]
[1717566889435,2.1315,173.58,173.53,6.334]
[1717566889652,2.1315,173.59,173.53,6.334]
[1717566889860,7.16,173.58,173.53,6.334]
[1717566890282,9.2915,173.58,173.53,6.334]
[1717566890565,9.2915,173.58,173.52,17.1559]
[1717566890566,2.1312,173.61,173.55,2.1319]
[1717566890779,9.2912,173.61,173.55,2.1319]
[1717566890941,20.0,173.6,173.55,24.4024]
[1717566891262,20.0,173.6,173.55,22.2705]
[1717566891443,20.0,173.6,173.55,24.4023]
[1717566892360,9.2912,173.61,173.55,24.4023]
[1717566892568,20.0,173.6,173.55,54.4023]
[1717566892774,20.0,173.6,173.55,61.5623]
[1717566893563,2.1314,173.6,173.55,52.2705]
[1717566894983,2.1314,173.59,173.55,52.2705]
[1717566895274,27.16,173.61,173.55,52.2705]
[1717566895762,2.1314,173.6,173.55,52.2705]
[1717566896158,2.1314,173.59,173.55,52.2705]
[1717566896344,2.1313,173.6,173.55,52.2705]
[1717566896840,6.3919,173.66,173.56,6.0583]
[1717566897053,9.291,173.63,173.56,45.35]
[1717566897778,9.291,173.63,173.56,15.35]
[1717566897953,2.131,173.62,173.56,15.35]
[1717566898553,9.291,173.63,173.56,15.35]
[1717566899155,2.131,173.62,173.56,15.35]
[1717566899552,2.131,173.62,173.56,8.19]
[1717566901473,9.291,173.63,173.56,8.19]
[1717566901675,2.1311,173.62,173.56,8.19]
[1717566902065,2.131,173.63,173.56,8.19]
[1717566902376,6.391,173.69,173.59,13.3037]
[1717566902551,6.391,173.69,173.6,7.16]
[1717566902552,2.1307,173.65,173.6,7.16]
[1717566902753,2.1306,173.66,173.62,6.1437]
[1717566902953,2.1307,173.65,173.62,6.1437]
[1717566903148,2.1308,173.64,173.58,2.1315]
[1717566903375,2.1308,173.64,173.6,6.0875]
[1717566903651,7.16,173.65,173.6,6.0875]
[1717566903850,9.2907,173.65,173.6,21.2287]
[1717566904850,9.2907,173.65,173.6,15.1412]
[1717566905080,9.2907,173.65,173.61,6.6016]
[1717566905980,2.1307,173.65,173.61,6.6016]
[1717566906782,2.1309,173.64,173.58,7.16]
[1717566906953,2.1312,173.61,173.56,6.276]
[1717566907662,2.1312,173.61,173.55,2.1318]
[1717566907861,2.1312,173.61,173.54,23.9379]
[1717566908063,2.1312,173.61,173.55,7.16]
[1717566908261,2.1312,173.61,173.55,9.2919]
[1717566908893,2.1313,173.6,173.54,31.0979]
[1717566909061,2.1313,173.6,173.54,23.9379]
[1717566909550,2.1313,173.6,173.54,31.0979]
[1717566909861,9.2912,173.61,173.55,2.1319]
[1717566911492,9.2912,173.61,173.54,23.9379]
[1717566911692,2.1313,173.6,173.54,23.9379]
[1717566911990,9.2912,173.61,173.54,31.0979]
[1717566912195,9.2912,173.61,173.55,2.1319]
[1717566913373,9.2911,173.62,173.56,2.1318]
[1717566915872,9.2911,173.62,173.55,9.2918]
[1717566916664,9.2911,173.62,173.56,2.1318]
[1717566917097,4.60284783,173.64,173.56,2.1318]
[1717566917277,2.131,173.63,173.55,7.16]
[1717566917479,7.16,173.62,173.56,2.1317]
[1717566918090,2.1311,173.62,173.56,2.1317]
[1717566918394,9.2911,173.62,173.56,2.1317]
[1717566918694,2.1313,173.61,173.54,23.9379]
[1717566918996,9.2913,173.6,173.54,23.9379]
[1717566919181,2.1312,173.61,173.55,2.1319]
[1717566919495,9.2912,173.61,173.55,8.7923]
[1717566920366,9.2912,173.61,173.55,6.6604]
[1717566920772,9.2911,173.62,173.56,2.1318]
[1717566921670,2.1309,173.63,173.58,6.2585]
[1717566922372,7.16,173.63,173.59,6.0727]
[1717566922595,20.0,173.62,173.59,6.0727]
[1717566923093,20.0,173.62,173.57,2.1316]
[1717566923341,2.1307,173.65,173.59,2.1313]
[1717566923602,9.2907,173.65,173.59,32.1314]
[1717566923783,20.0,173.64,173.6,6.4755]
[1717566924272,22.1308,173.64,173.6,6.4755]
[1717566924606,2.1308,173.64,173.6,6.4755]